bitfinex-derivatives/quotes_ETHF0:USTF0_20251031
["timestamp","ask_amount","ask_price","bid_price","bid_amount"]
[1761886199428,0.00335452,3865.6,3865.1,0.3271]
[1761886199626,0.64479828,3865.5,3865.1,0.3271]
[1761886199824,1.82295803,3865.4,3865.1,0.3271]
[1761886200029,0.64479828,3865.3,3865.1,0.3271]
[1761886200330,0.64479828,3865.2,3865.1,0.3271]
[1761886201324,0.64479828,3865.2,3865.1,0.5576]
[1761886201525,0.64479828,3865.2,3865.1,0.3271]
[1761886202027,0.64479828,3865.2,3865.1,0.5576]
[1761886202329,0.64479828,3865.2,3865.1,0.3271]
[1761886202330,0.08089665,3865.2,3865.1,0.3271]
[1761886203133,0.08089665,3865.2,3865.1,0.7749]
[1761886203430,1.17815975,3865.4,3865.2,0.3271]
[1761886203620,0.64417031,3865.3,3865.2,0.3271]
[1761886204432,0.64417031,3865.3,3865.2,0.5576]
[1761886204629,0.00335452,3865.6,3865.5,1.23552]
[1761886207531,0.00335452,3865.6,3865.5,8.88351449]
[1761886208032,0.00335452,3865.6,3865.5,7.70535474]
[1761886208935,0.00335452,3865.6,3865.5,8.88351449]
[1761886209137,3.54204,3866.4,3866.3,0.7749]
[1761886209631,3.54204,3866.4,3866.3,41.5749]
[1761886210134,3.54492789,3866.4,3866.3,41.5749]
[1761886213021,1.17815975,3867.1,3867.0,0.6158]
[1761886213228,1.25902209,3867.1,3867.0,0.6158]
[1761886214037,1.26100613,3867.1,3867.0,0.61906654]
[1761886215439,1.84742319,3867.1,3867.0,0.61906654]
[1761886216433,2.31302319,3867.1,3867.0,0.61906654]
[1761886216729,2.31302319,3867.1,3867.0,0.48286654]
[1761886216936,2.31302319,3867.1,3866.4,0.5853]
[1761886216937,0.4656,3866.5,3866.4,0.5853]
[1761886217837,0.3104,3866.5,3866.4,1.3544]
[1761886218034,0.3104,3866.5,3866.4,1.35730832]
[1761886218035,0.1552,3866.5,3866.4,1.35730832]
[1761886218435,0.3104,3866.5,3866.4,1.35730832]
[1761886219038,0.4656,3866.5,3866.4,0.58820832]
[1761886220237,0.4656,3866.5,3866.4,0.00290832]
[1761886220536,0.54647164,3866.5,3866.4,0.00290832]
[1761886220738,1.13303605,3866.5,3866.4,0.00290832]
[1761886223237,0.4656,3865.8,3865.7,0.5853]
[1761886224246,0.4656,3865.8,3865.7,0.58866349]
[1761886224748,0.3104,3865.8,3865.7,0.58866349]
[1761886225128,0.3104,3865.8,3865.7,0.97966349]
[1761886225331,1.08145751,3866.7,3866.3,0.391]
[1761886225637,0.3104,3866.4,3866.3,1.3544]
[1761886225941,0.39128383,3866.4,3866.3,1.3544]
[1761886226140,0.97814177,3866.4,3866.3,1.3544]
[1761886226442,0.23608383,3866.4,3866.3,1.3544]
[1761886226741,0.39128383,3866.4,3866.3,1.3544]
[1761886227140,0.3104,3866.4,3866.3,1.3544]
[1761886231946,0.1552,3866.4,3866.3,1.3544]
[1761886232147,0.15718404,3867.1,3867.0,0.9634]
[1761886232445,0.82563208,3867.1,3867.0,1.5772]
[1761886233039,0.67043208,3867.1,3867.0,1.5772]
[1761886233547,0.00198404,3867.1,3867.0,8.04703474]
[1761886234340,2.22562397,3867.1,3867.0,1.5772]
[1761886234547,2.30647507,3867.1,3867.0,1.5772]
[1761886235043,2.15127507,3867.1,3867.0,1.5772]
[1761886235247,1.99607507,3867.1,3867.0,1.5772]
[1761886235549,0.67052713,3867.1,3867.0,1.5772]
[1761886236345,0.82572713,3867.1,3867.0,1.5772]
[1761886236545,0.15718404,3867.1,3867.0,1.5772]
[1761886236745,0.23803978,3867.1,3867.0,1.5772]
[1761886237049,0.82574559,3867.1,3867.0,1.5772]
[1761886237451,2.30649353,3867.1,3867.0,1.1991]
[1761886237647,0.92625751,3867.8,3867.7,1.3544]
[1761886237845,1.38971468,3869.1,3869.0,0.7691]
[1761886238160,0.3104,3869.1,3869.0,1.1991]
[1761886238553,0.3130178,3869.1,3869.0,1.1991]
[1761886238748,0.3130178,3869.1,3869.0,1.20136429]
[1761886239256,0.7539,3867.8,3867.7,40.8]
[1761886239453,0.7539,3867.8,3867.0,0.2228]
[1761886239454,0.2513,3867.7,3867.0,0.9919]
[1761886239768,0.5026,3867.6,3867.5,0.6138]
[1761886240251,0.7539,3867.6,3867.5,0.22591313]
[1761886241357,0.5026,3867.6,3867.5,1.14221313]
[1761886241557,9.165,3867.8,3867.5,1.14221313]
[1761886241558,9.165,3867.8,3867.6,0.5471]
[1761886241760,0.2067,3867.8,3867.7,0.9163]
[1761886241956,9.5774,3867.8,3867.7,0.9163]
[1761886242955,0.4134,3867.8,3867.7,0.9163]
[1761886243157,9.5774,3867.8,3867.7,1.2849]
[1761886243851,9.7841,3867.8,3867.7,0.5471]
[1761886244057,0.6201,3867.6,3867.5,0.22591313]
[1761886244556,0.4134,3867.6,3867.5,1.14221313]
[1761886244758,0.2067,3867.6,3867.5,1.51081313]
[1761886244955,0.4134,3867.6,3867.5,1.14221313]
[1761886245259,0.4134,3867.6,3867.5,1.51081313]
[1761886246460,0.2036,3866.1,3866.0,0.592]
[1761886246656,9.3666,3866.1,3866.0,7.97753474]
[1761886246862,9.163,3866.1,3866.0,7.97753474]
[1761886247564,9.16584565,3866.1,3866.0,7.98029699]
[1761886250665,9.57304565,3866.1,3866.0,7.98029699]
[1761886252563,9.16584565,3866.1,3866.0,7.98029699]
[1761886252766,0.00284565,3866.1,3866.0,7.98029699]
[1761886252968,0.2036,3867.3,3867.2,1.2849]
[1761886253168,9.44646617,3867.3,3867.2,1.2849]
[1761886253368,10.02645876,3867.3,3867.2,1.2849]
[1761886253769,10.23005876,3867.3,3867.2,1.2849]
[1761886253969,10.23266784,3867.3,3867.2,0.9163]
[1761886254168,0.86706784,3867.3,3867.2,1.2849]
[1761886254369,10.02906784,3867.3,3867.2,1.2849]
[1761886254779,0.66346784,3867.3,3867.2,1.2849]
[1761886255268,0.58260167,3867.3,3867.2,1.2849]
[1761886256059,0.00260908,3867.3,3867.2,7.75473474]
[1761886257173,0.4072,3868.5,3868.4,1.2849]
[1761886257373,1.85910642,3868.5,3868.4,1.2849]
[1761886257672,1.85910642,3868.5,3868.4,0.9163]
[1761886258172,0.4072,3868.1,3868.0,0.2241]
[1761886258361,0.4072,3867.7,3867.5,0.2241]
[1761886258562,1.06813936,3867.6,3867.5,0.7712]
[1761886258763,1.06813936,3867.6,3867.5,1.1404]
[1761886259076,1.06813936,3867.6,3867.5,1.509]
[1761886259271,0.4072,3866.8,3866.7,1.2849]
[1761886259476,0.2036,3867.5,3866.8,0.5471]
[1761886259681,0.2036,3867.0,3866.9,1.2849]
[1761886259975,10.02565326,3867.0,3866.9,1.2849]
[1761886260573,10.22925326,3867.0,3866.9,1.2849]
[1761886260774,10.22925326,3867.0,3866.9,0.9163]
[1761886261073,0.2036,3866.6,3866.5,0.5933]
[1761886261266,9.161,3867.0,3866.9,0.3692]
[1761886261470,10.02567235,3867.0,3866.9,0.7378]
[1761886261671,10.02567235,3867.0,3866.9,1.2849]
[1761886263474,10.43287235,3867.0,3866.9,0.5471]
[1761886263678,0.2036,3866.6,3866.5,0.9619]
[1761886263869,3.52429489,3867.7,3867.0,0.2241]
[1761886264178,0.4072,3867.2,3867.1,0.9163]
[1761886264380,0.48806244,3867.2,3867.1,0.9163]
[1761886264573,1.06824659,3867.2,3867.1,0.9163]
[1761886265968,1.06824615,3867.2,3867.1,0.9163]
[1761886266875,1.06824615,3867.2,3867.1,1.2849]
[1761886267377,0.66104615,3867.2,3867.1,7.75473474]
[1761886267576,9.16,3867.3,3867.2,1.2849]
[1761886267780,10.02460339,3867.3,3867.2,7.75473474]
[1761886267968,10.02460339,3867.3,3867.2,1.2849]
[1761886269180,9.82100339,3867.3,3867.2,1.2849]
[1761886269385,9.82100339,3867.3,3867.2,7.75473474]
[1761886270078,10.02460339,3867.3,3867.2,7.75473474]
[1761886270979,10.22820339,3867.3,3867.2,0.9163]
[1761886271572,10.22820339,3867.3,3867.2,7.38613474]
[1761886273085,0.1854,3867.1,3867.0,0.2241]
[1761886273280,0.26625618,3867.1,3867.0,0.2241]
[1761886273485,0.1854,3866.6,3866.5,0.588]
[1761886273787,0.1854,3866.6,3866.5,1.1086]
[1761886273977,0.1854,3866.6,3866.5,1.435]
[1761886274883,0.94006929,3866.6,3866.5,0.7447]
[1761886275184,0.84736929,3866.6,3866.5,0.7447]
[1761886275573,0.94006929,3866.6,3865.6,40.8]
[1761886275779,0.1854,3866.1,3866.0,0.91716225]
[1761886276281,0.1854,3866.1,3866.0,7.90759699]
[1761886276479,0.92658952,3866.8,3866.1,0.3348]
[1761886276684,0.1434,3867.0,3866.9,0.471]
[1761886276878,0.1434,3866.7,3866.6,0.471]
[1761886277086,0.0717,3866.5,3866.3,0.471]
[1761886277307,10.03809404,3866.4,3866.3,0.471]
[1761886277586,9.96639404,3866.4,3866.3,0.471]
[1761886277787,9.96639404,3866.4,3866.3,0.8058]
[1761886278785,1.06998952,3867.1,3867.0,1.0102]
[1761886279091,1.06998952,3867.1,3867.0,1.3318]
[1761886279092,9.3024,3867.1,3867.0,1.3318]
[1761886279391,9.3741,3867.1,3867.0,0.6754]
[1761886279588,0.1434,3866.8,3866.7,0.8058]
[1761886280493,0.1434,3866.8,3866.7,1.1274]
[1761886280994,9.3024,3867.1,3867.0,1.0102]
[1761886281289,0.92658952,3867.6,3867.5,0.6564]
[1761886281491,1.06998952,3867.9,3867.8,0.8058]
[1761886281695,10.22798952,3867.9,3867.8,0.8058]
[1761886282193,9.3014,3867.9,3867.8,0.8058]
[1761886282695,0.1434,3867.9,3867.8,0.8058]
[1761886282893,9.3014,3867.9,3867.8,0.8058]
[1761886283378,10.22798952,3867.9,3867.8,0.8058]
[1761886283587,9.3014,3867.9,3867.8,0.8058]
[1761886284593,0.1434,3867.9,3867.8,0.8058]
[1761886284799,9.3014,3867.9,3867.8,0.8058]
[1761886285097,9.3014,3867.9,3867.8,1.1274]
[1761886285299,0.0717,3867.5,3866.6,0.471]
[1761886285591,1.75079919,3866.9,3866.8,1.1274]
[1761886285795,9.2287,3866.9,3866.8,1.1274]
[1761886286286,9.3004,3866.9,3866.8,1.1274]
[1761886289181,9.3004,3866.9,3866.8,0.471]
[1761886289381,9.3004,3866.9,3866.8,0.8058]
[1761886289592,9.157,3866.9,3866.8,6.46983474]
[1761886289792,9.157,3866.9,3866.8,7.12623474]
[1761886290100,0.0717,3866.3,3866.2,0.471]
[1761886290283,9.3721,3866.3,3866.2,0.471]
[1761886290594,9.3004,3866.3,3866.2,0.471]
[1761886290897,0.1434,3866.1,3866.0,0.69786225]
[1761886291193,0.29598066,3866.1,3866.0,0.00276225]
[1761886291400,0.87817255,3866.1,3866.0,0.47376225]
[1761886292492,0.80647255,3866.1,3866.0,0.67816225]
[1761886292988,0.80647255,3866.1,3865.5,0.6754]
[1761886292989,0.1434,3865.6,3865.5,0.6754]
[1761886293194,0.1434,3865.6,3865.0,0.2044]
[1761886293195,0.1434,3865.1,3865.0,0.5392]
[1761886293501,9.3004,3865.1,3865.0,0.5392]
[1761886293698,9.3004,3865.1,3864.7,0.32608]
[1761886293699,0.1434,3864.8,3864.7,0.471]
[1761886293896,0.1434,3864.8,3864.7,0.8058]
[1761886294091,0.14521873,3864.8,3864.7,0.80872398]
[1761886294392,0.14521873,3864.8,3864.7,1.13032398]
[1761886295901,0.00181873,3864.8,3864.7,7.60015872]
[1761886296192,9.15981873,3864.8,3864.7,7.60015872]
[1761886296503,9.37491873,3864.8,3864.7,0.47392398]
[1761886296701,9.96462082,3864.8,3864.7,0.47392398]
[1761886297092,9.3841275,3864.8,3864.7,0.47392398]
[1761886297293,9.30321873,3864.8,3864.7,0.47392398]
[1761886297697,0.6383,3864.6,3864.5,0.2044]
[1761886297998,0.6383,3864.6,3864.5,0.5392]
[1761886298199,0.6383,3864.6,3864.5,7.00903474]
[1761886298401,0.1434,3864.6,3864.5,7.33063474]
[1761886298601,9.3024,3864.6,3864.5,7.33355132]
[1761886299702,9.3024,3864.6,3864.5,7.80455132]
[1761886300201,9.3024,3864.6,3864.5,8.13065132]
[1761886301201,0.31951873,3864.8,3864.7,1.1154]
[1761886301402,10.25311873,3864.8,3864.7,0.79]
[1761886301895,10.25311873,3864.8,3864.5,0.20731658]
[1761886301896,1.0923,3864.6,3864.5,0.68511658]
[1761886302096,1.0923,3864.6,3864.5,7.46715132]
[1761886302296,0.6238,3864.6,3864.5,7.46715132]
[1761886302496,0.6238,3864.6,3864.5,7.79255132]
[1761886306606,2.30289919,3864.6,3864.5,7.79255132]
[1761886306801,1.99679919,3864.6,3864.5,7.79255132]
[1761886307003,0.31951873,3864.8,3864.7,1.1154]
[1761886307203,9.47951873,3864.8,3864.7,1.1154]
[1761886308101,9.78561873,3864.8,3864.7,1.1154]
[1761886308308,10.25411873,3864.8,3864.7,1.1154]
[1761886308508,9.78561873,3864.8,3864.7,1.1154]
[1761886309804,7.78561873,3864.8,3864.7,1.1154]
[1761886310112,7.98591873,3864.8,3864.7,1.1154]
[1761886310612,7.98591873,3864.8,3864.2,0.3471427]
[1761886310613,0.6009,3864.3,3864.2,0.3471427]
[1761886310910,0.6009,3863.8,3863.7,0.4778]
[1761886311106,11.43999919,3863.8,3863.7,0.4778]
[1761886311706,11.44258077,3863.8,3863.7,0.48075434]
[1761886313108,11.24228077,3863.8,3863.7,1.11835434]
[1761886313503,2.08228077,3863.8,3863.7,1.11835434]
[1761886313705,11.24328077,3863.8,3863.7,1.11835434]
[1761886314415,11.32421043,3863.8,3863.7,1.11835434]
[1761886315907,9.24451124,3863.8,3863.7,7.58818908]
[1761886316107,9.16358158,3863.8,3863.7,7.58818908]
[1761886318219,9.24450507,3863.8,3863.7,7.58818908]
[1761886319217,9.24550507,3863.8,3863.7,7.58818908]
[1761886321119,9.24450507,3863.8,3863.7,7.58818908]
[1761886321520,0.08350507,3863.8,3863.7,7.58818908]
[1761886322225,0.66405542,3863.8,3863.7,7.58818908]
[1761886322824,0.08350507,3863.8,3863.7,7.58818908]
[1761886323025,0.66407108,3863.8,3863.7,7.58818908]
[1761886323418,0.66407108,3863.8,3863.7,1.11835434]
[1761886323618,0.66407108,3863.8,3863.7,7.58818908]
[1761886324727,0.66438286,3863.8,3863.7,7.58818908]
[1761886325423,0.92901787,3865.0,3864.9,1.1154]
[1761886325618,0.92901787,3865.0,3864.9,0.4778]
[1761886325619,7.99151706,3865.0,3864.9,0.4778]
[1761886325818,7.64338716,3865.0,3864.9,0.4778]
[1761886326420,7.64593276,3865.0,3864.9,0.4778]
[1761886327732,5.39923357,3865.0,3864.9,1.1154]
[1761886327936,0.86723357,3865.0,3864.9,1.1154]
[1761886328327,10.31103357,3865.0,3864.9,1.1154]
[1761886328932,10.59483357,3865.0,3864.9,1.1154]
[1761886330542,10.31103357,3865.0,3864.9,1.1154]
[1761886331236,10.65883357,3865.0,3864.9,0.79]
[1761886331433,11.83824768,3865.0,3864.9,0.79]
[1761886331935,11.49044768,3865.0,3864.9,0.79]
[1761886332832,11.49044768,3865.0,3864.9,1.1392]
[1761886333331,11.49044768,3865.0,3864.9,6.68004137]
[1761886333935,11.83824768,3865.0,3864.9,6.33084137]
[1761886334341,0.6377,3864.6,3864.5,0.4903]
[1761886334641,11.55700208,3864.6,3864.5,0.4903]
[1761886334942,11.55700208,3864.6,3864.5,6.55224137]
[1761886335243,11.55700208,3864.6,3864.5,6.90144137]
[1761886335544,10.64701411,3864.6,3864.5,6.90144137]
[1761886337340,10.72792226,3864.6,3864.5,6.90144137]
[1761886338345,10.72692226,3864.6,3864.5,6.90144137]
[1761886339444,0.08090815,3864.6,3864.5,6.90144137]
[1761886339647,3.51390815,3864.6,3864.5,6.90144137]
[1761886340043,6.64690815,3864.6,3864.5,6.90144137]
[1761886340340,6.566,3864.6,3864.5,6.90144137]
[1761886340644,0.3287456,3865.0,3864.9,1.179]
[1761886340840,0.3287456,3865.0,3864.9,6.71984137]
[1761886340841,9.81586035,3865.0,3864.9,6.71984137]
[1761886341346,10.14206035,3865.0,3864.9,6.71984137]
[1761886342046,10.79446035,3865.0,3864.9,0.5053]
[1761886342231,10.46826035,3865.0,3864.5,0.5132]
[1761886342435,0.6524,3864.6,3864.5,0.8424]
[1761886342649,9.89030597,3864.6,3864.5,1.1869]
[1761886342947,9.89030597,3864.6,3864.5,7.23304137]
[1761886344147,9.8094,3864.6,3864.5,7.23304137]
[1761886344449,9.4832,3864.6,3864.5,7.23304137]
[1761886344750,9.157,3864.6,3864.5,7.23304137]
[1761886345250,9.23790563,3864.6,3864.5,7.23304137]
[1761886345554,0.0025456,3865.0,3864.9,0.99977]
[1761886345744,0.0025456,3865.0,3864.9,7.04591137]
[1761886346049,0.6524,3864.6,3864.5,0.5163]
[1761886346241,9.1451334,3864.6,3864.5,0.5163]
[1761886346444,9.1451334,3864.6,3864.5,6.05714137]
[1761886346638,9.1451334,3864.6,3864.5,6.90694137]
[1761886348745,9.14561111,3864.6,3864.5,6.90694137]
[1761886350651,0.65621111,3864.6,3864.5,6.90694137]
[1761886351148,5.9858963,3864.6,3864.5,6.90694137]
[1761886351452,6.56139264,3864.6,3864.5,6.90694137]
[1761886352556,6.88759264,3864.6,3864.5,6.90694137]
[1761886353054,6.88759264,3864.6,3864.5,6.90694137]
[1761886353551,6.56139264,3864.6,3864.5,6.90694137]
[1761886354654,0.98259264,3864.6,3864.5,6.90694137]
[1761886356053,0.0025456,3865.0,3864.5,6.90694137]
[1761886356255,0.0025456,3865.0,3864.9,7.04591137]
[1761886356753,0.0025456,3865.0,3864.9,47.84591137]
[1761886358749,0.0025456,3865.0,3864.9,47.51984137]
[1761886360557,0.8618,3864.8,3864.1,1.36745018]
[1761886360862,1.51995498,3865.0,3864.0,0.51324]
[1761886360863,1.97810938,3864.3,3864.2,6.19154137]
[1761886361052,2.44470938,3864.7,3864.6,1.1144]
[1761886361961,2.44470938,3864.7,3864.6,0.3174]
[1761886362662,2.44470938,3864.7,3864.3,0.4637]
[1761886362962,1.1184,3864.4,3864.3,0.7811]
[1761886363156,1.1184,3864.4,3864.3,1.1144]
[1761886363364,1.1184,3864.4,3864.3,6.65524137]
[1761886366361,0.4691456,3865.0,3864.6,0.6507]
[1761886366565,0.4691456,3865.0,3864.5,0.2097]
[1761886366566,0.0025456,3865.0,3864.9,8.30762075]
[1761886366857,1.1209456,3865.0,3864.9,6.65524137]
[1761886367167,2.44725498,3865.0,3864.9,47.45524137]
[1761886367356,1.1209456,3865.0,3864.9,47.45524137]
[1761886367562,1.1209456,3865.0,3864.9,6.65524137]
[1761886367870,0.6543456,3865.0,3864.9,6.65524137]
[1761886368164,0.3370456,3865.0,3864.9,6.65524137]
[1761886368965,1.1209456,3865.0,3864.9,6.65524137]
[1761886370666,0.6543456,3865.0,3864.9,6.65524137]
[1761886372972,0.6543456,3865.0,3864.8,0.32607]
[1761886372973,2.58736654,3865.0,3864.0,0.2097]
[1761886373162,0.93124764,3864.2,3864.1,0.4637]
[1761886373356,0.65189934,3864.2,3864.1,0.4637]
[1761886373669,9.80289934,3864.2,3864.1,1.1144]
[1761886374368,0.57099914,3864.2,3864.1,3.59504339]
[1761886374566,9.151,3864.6,3864.5,1.3241]
[1761886374765,9.80259222,3864.6,3864.5,1.3241]
[1761886376671,0.65159222,3864.6,3864.5,1.3241]
[1761886376862,9.80259222,3864.6,3864.5,1.3241]
[1761886378062,0.65159222,3864.6,3864.5,1.3241]
[1761886378575,7.59059222,3864.6,3864.5,1.3241]
[1761886379166,9.80259222,3864.6,3864.5,1.3241]
[1761886379368,0.65159222,3864.6,3864.5,1.6502]
[1761886379671,7.59059222,3864.6,3864.5,4.13084339]
[1761886379870,7.59059222,3864.6,3864.5,3.80474339]
[1761886380261,9.80259222,3864.6,3864.5,3.80474339]
[1761886380766,0.65159222,3864.6,3864.5,3.80474339]
[1761886381073,0.08091466,3864.6,3864.5,3.80474339]
[1761886381373,0.0025456,3865.0,3864.9,1.1144]
[1761886381567,3.96045199,3865.0,3864.9,1.1144]
[1761886381869,4.53093057,3865.0,3864.9,0.4637]
[1761886383172,4.53093057,3865.0,3864.9,1.1144]
[1761886383569,0.65393057,3865.0,3864.9,1.1144]
[1761886383877,8.67893057,3865.0,3864.9,1.1144]
[1761886386774,9.80493057,3865.0,3864.9,1.1144]
[1761886387282,11.13187245,3865.0,3864.9,1.1144]
[1761886388384,11.13087245,3865.0,3864.9,1.1144]
[1761886388780,11.13087245,3865.0,3864.5,0.5271]
[1761886388979,1.32694188,3864.6,3864.5,0.2097]
[1761886389176,1.97832685,3864.6,3864.5,0.2097]
[1761886389382,1.32694188,3864.1,3864.0,0.85324]
[1761886389681,1.32694188,3864.1,3864.0,3.33388339]
[1761886389881,1.32694188,3864.1,3864.0,3.66718339]
[1761886390085,1.40786119,3864.1,3864.0,0.8604]
[1761886390274,1.97867198,3864.1,3864.0,0.5271]
[1761886390785,1.97867198,3864.1,3864.0,1.0801]
[1761886391380,1.97867198,3864.1,3864.0,0.7627]
[1761886391581,11.12867198,3864.1,3864.0,1.0746]
[1761886391775,11.12867198,3864.1,3864.0,1.4357]
[1761886393179,11.12867198,3864.1,3864.0,0.7627]
[1761886393785,11.12867198,3864.1,3864.0,1.0746]
[1761886394376,11.12867198,3864.1,3864.0,0.7627]
[1761886394582,1.112,3863.8,3863.7,0.00295434]
[1761886394886,1.7637301,3863.8,3863.7,0.00295434]
[1761886395678,2.66637198,3863.8,3863.7,0.67595434]
[1761886395878,10.29037198,3863.8,3863.7,0.67595434]
[1761886396280,10.29037198,3863.8,3863.7,0.00295434]
[1761886396281,3.09067198,3863.8,3863.7,0.00295434]
[1761886396490,12.24067198,3863.8,3863.7,0.00295434]
[1761886399384,0.7396,3862.8,3862.7,1.08456]
[1761886399585,9.8896,3862.8,3862.7,0.7583]
[1761886399788,9.8896,3862.8,3862.7,3.23894339]
[1761886400085,10.3299,3862.8,3862.7,3.80564339]
[1761886400283,9.8896,3862.8,3862.7,3.80858275]
[1761886401380,11.07021602,3862.8,3862.7,3.80858275]
[1761886402891,11.51051602,3862.8,3862.7,3.80858275]
[1761886403188,11.51051602,3862.8,3862.7,3.42908275]
[1761886403692,11.51051602,3862.8,3862.7,3.05028275]
[1761886403892,12.69113204,3862.8,3862.7,0.00293936]
[1761886404891,11.51051602,3862.8,3862.7,0.56963936]
[1761886405496,0.3767,3862.8,3862.7,3.80858275]
[1761886405695,1.18061602,3862.9,3862.8,1.325]
[1761886405895,4.37831602,3862.9,3862.8,3.80564339]
[1761886407300,5.18151602,3862.9,3862.8,3.80564339]
[1761886407797,4.74121602,3862.9,3862.8,3.80564339]
[1761886409092,1.18061602,3863.2,3863.1,0.5667]
[1761886409297,1.18061602,3863.2,3863.1,3.80564339]
[1761886410593,0.93124764,3864.1,3863.5,0.2267]
[1761886410801,0.4403,3864.2,3864.1,0.5667]
[1761886410991,11.59144707,3864.2,3864.1,0.5667]
[1761886411296,12.15952233,3864.2,3864.1,0.5667]
[1761886411597,0.3629,3863.9,3863.8,0.9455]
[1761886411795,1.38860631,3863.9,3863.8,0.9455]
[1761886412096,1.38860631,3863.9,3863.8,3.42614339]
[1761886412793,1.1799,3863.6,3863.5,0.6055]
[1761886412993,11.51051602,3863.6,3863.5,0.6055]
[1761886413200,11.51051602,3863.6,3863.5,3.08614339]
[1761886413403,11.51051602,3863.6,3863.5,3.65284339]
[1761886413791,0.3767,3863.1,3863.0,0.6055]
[1761886413999,0.3767,3863.1,3863.0,0.985]
[1761886414201,1.18061602,3863.2,3863.1,1.08452]
[1761886414495,10.32961602,3863.2,3863.1,4.13186339]
[1761886415402,10.32961602,3863.2,3863.1,3.80564339]
[1761886417406,1.18061602,3863.2,3863.1,3.80564339]
[1761886417598,10.32961602,3863.2,3863.1,3.80564339]
[1761886419102,9.148,3863.8,3863.5,0.2267]
[1761886419300,9.148,3863.8,3863.5,0.6055]
[1761886419301,1.92021602,3863.6,3863.5,0.6055]
[1761886419605,2.57073113,3863.6,3863.5,0.6055]
[1761886419802,2.57073113,3863.6,3863.5,4.03234339]
[1761886420108,3.01103113,3863.6,3863.5,4.03234339]
[1761886420605,2.57073113,3863.6,3863.5,4.03234339]
[1761886420803,2.92323113,3863.6,3863.5,3.27404339]
[1761886421607,0.6793,3863.1,3863.0,0.9398]
[1761886421798,11.08884481,3863.1,3863.0,0.9398]
[1761886422003,11.08884481,3863.1,3863.0,3.42044339]
[1761886422204,11.08884481,3863.1,3863.0,3.94354339]
[1761886422502,11.44134481,3863.1,3863.0,3.59624339]
[1761886423108,11.08884481,3863.1,3863.0,3.94354339]
[1761886423303,11.65884647,3863.1,3863.0,3.94354339]
[1761886423504,1.53311602,3863.4,3863.3,0.7131]
[1761886423809,11.33104022,3863.4,3863.3,1.2362]
[1761886424106,11.65784022,3863.4,3863.3,3.71684339]
[1761886424495,0.08093495,3863.4,3863.3,3.71684339]
[1761886424697,9.147,3863.7,3863.6,1.2362]
[1761886424893,9.79796463,3863.7,3863.6,1.2362]
[1761886425097,9.79796463,3863.7,3863.6,3.71684339]
[1761886425506,10.15046463,3863.7,3863.6,3.71684339]
[1761886426208,1.28374764,3864.4,3864.3,1.2362]
[1761886426511,10.14932903,3864.4,3864.3,1.2362]
[1761886426708,10.14932903,3864.4,3864.3,3.71684339]
[1761886428806,10.14832903,3864.4,3864.3,3.71684339]
[1761886429510,10.14832903,3864.4,3864.0,41.0077]
[1761886429511,0.6793,3864.1,3864.0,40.8]
[1761886429718,0.3525,3863.2,3863.1,1.2362]
[1761886430008,10.34511602,3863.2,3863.1,1.2362]
[1761886430216,10.75284952,3863.2,3863.1,3.71684339]
[1761886430602,11.10534952,3863.2,3863.1,3.71684339]
[1761886430908,11.67390563,3863.2,3863.1,2.48064339]
[1761886431097,11.67390563,3863.2,3863.1,3.00374339]
[1761886431301,11.67390563,3863.2,3863.1,3.36954339]
[1761886431302,11.32140563,3863.2,3863.1,3.36954339]
[1761886431501,11.32140563,3863.2,3863.1,3.71684339]
[1761886431804,11.65440563,3863.2,3863.1,3.71684339]
[1761886432003,1.94084952,3863.2,3863.1,3.71684339]
[1761886432306,11.08584952,3863.2,3863.1,3.71684339]
[1761886432613,9.9052335,3863.2,3863.1,3.71684339]
[1761886433005,0.7602335,3863.2,3863.1,3.71684339]
[1761886433209,6.3412335,3863.2,3863.1,3.71684339]
[1761886434415,0.7602335,3863.2,3863.1,3.71684339]
[1761886434713,9.9052335,3863.2,3863.1,3.71684339]
[1761886437409,10.82662501,3863.2,3863.1,3.00374339]
[1761886437610,0.6793,3863.1,3863.0,1.4439]
[1761886437817,0.3525,3863.5,3863.4,0.7131]
[1761886437818,0.6793,3863.5,3863.4,0.7131]
[1761886438016,9.38273586,3863.5,3863.4,0.7131]
[1761886438216,0.6793,3863.1,3863.0,0.9208]
[1761886438414,1.28374764,3863.9,3863.2,0.5231]
[1761886438718,9.45417592,3863.8,3863.7,0.8889]
[1761886439409,9.80667592,3863.8,3863.7,0.8889]
[1761886439614,10.98729194,3863.8,3863.7,0.8889]
[1761886439811,2.50979194,3863.8,3863.7,0.8889]
[1761886440018,11.65379194,3863.8,3863.7,1.2362]
[1761886440215,12.00629194,3863.8,3863.7,0.8889]
[1761886440422,0.64987592,3863.8,3863.7,3.71684339]
[1761886440609,9.22493498,3863.8,3863.7,3.71684339]
[1761886440912,10.47311668,3863.8,3863.7,3.71684339]
[1761886441107,10.82561668,3863.8,3863.7,0.5231]
[1761886441814,10.82561668,3863.8,3863.7,1.2362]
[1761886441815,10.47311668,3863.8,3863.7,1.2362]
[1761886442007,11.6537327,3863.8,3863.7,1.2362]
[1761886442320,12.0062327,3863.8,3863.7,0.8889]
[1761886442615,1.0318,3863.6,3863.5,0.7308]
[1761886442816,1.0318,3863.6,3863.5,2.62451602]
[1761886442817,0.08093498,3863.6,3863.5,2.62451602]
[1761886443008,1.0318,3864.3,3864.2,0.8889]
[1761886443209,12.00522721,3864.3,3864.2,0.8889]
[1761886443815,12.00522721,3864.3,3864.2,0.5231]
[1761886444518,12.00522721,3864.3,3864.2,0.8889]
[1761886445117,12.00522721,3864.3,3864.2,0.5231]
[1761886445314,2.86222721,3864.3,3864.2,0.5231]
[1761886445524,2.86222721,3864.3,3864.2,3.71684339]
[1761886445525,0.64981119,3864.3,3864.2,3.71684339]
[1761886445725,0.3525,3864.3,3864.2,2.48064339]
[1761886445915,0.3525,3864.3,3864.2,3.19374339]
[1761886446318,0.3525,3864.3,3864.2,3.71684339]
[1761886446524,0.6793,3864.3,3864.2,3.71684339]
[1761886446727,0.3525,3864.3,3864.2,3.71684339]
[1761886447618,10.32361602,3864.4,3864.3,1.2362]
[1761886447826,10.40452518,3864.4,3864.3,3.71684339]
[1761886448221,10.32361602,3864.4,3864.3,3.71684339]
[1761886449326,9.143,3864.4,3864.3,3.71684339]
[1761886450928,9.4955,3864.4,3864.3,3.71684339]